Cogmind - Beta 14 @@@ ROGUE MODE // 2024.08.29 @ 09:01:04 Player: MOPO3 Result: Destroyed by B-75 Beast with Magnetic Acceleration Cannon Performance ------------- Evolutions (5) 2500 Regions Visited (12) 2400 Robots Destroyed (26) 130 Value Destroyed (734) 734 Prototype IDs (25) 500 Alien Tech Used (0) 0 Bonus (800) 800 TOTAL SCORE: 7064 Bonus ------- Entered DSFs 500 Aligned with FarCom 300 Cogmind --------- Core Integrity 0/1000 Matter 300/300 Energy 99/100 System Corruption 14% Temperature Cool (0) Movement Core (50) Location -5/Extension Parts ------- > --- POWER (2) -------- (None) > --- PROPULSION (6) --- (None) > --- UTILITY (7) ------ Enhanced Optical Array Advanced Signal Interpreter Hacking Suite > --- WEAPON (2) ------- (None) > --- INVENTORY (5) ---- Cold Fusion Reactor Antimatter Reactor Improved Cesium-ion Thruster Nuclear Pulse Thruster Advanced Terrain Scan Processor Peak State ------------ > --- POWER ------------ Light Angular Momentum Engine Micro Fission Core > --- PROPULSION ------- Surge Thruster Nuclear Pulse Thruster Flying Fortress v7 > --- UTILITY ---------- Advanced Cooling System Large Storage Unit Enhanced Optical Array Advanced Signal Interpreter Advanced Terrain Scan Processor ECM Suite Hardened Medium Armor Plating > --- WEAPON ----------- Katana > --- INVENTORY -------- Improved Deuterium Engine Improved Deuterium Engine Cold Fusion Reactor Antimatter Reactor Nuclear Pulse Thruster Nuclear Pulse Thruster Matter Compressor Advanced Signal Interpreter Advanced Signal Interpreter Advanced ECM Suite Hardened Medium Armor Plating Bore Cannon Bore Cannon Rocket Launcher Fusion Bomb Launcher [Rating: 86] Favorites ----------- Power Ion Engine Engine Ion Engine Power Core Micro Fission Core Reactor Antimatter Reactor Propulsion Aluminum Leg Leg Aluminum Leg Flight Unit Flying Fortress v7 Utility Large Storage Unit Device ECM Suite Storage Large Storage Unit Processor Advanced Signal Interpreter Hackware Hacking Suite Protection Medium Armor Plating Weapon Light Assault Rifle Energy Gun EM Pulse Gun Ballistic Gun Light Assault Rifle Ballistic Cannon Flak Cannon Launcher Rocket Launcher Slashing Weapon Katana Piercing Weapon Spear Build | -11 -10 -10 -10 -9 -8 -7 -7 -6 -5 -5 -5 -5 ------- Run | Yrd Mat Min Exi Min Mat Fac DSF Fac Fac Was Fac Ext Slots Evolved 10 | . . . . . 4 2 . 2 2 . . . Power 1 | . . . . . . . . . 1 . . . Propulsion 4 | . . . . . 2 1 . 1 . . . . Utility 5 | . . . . . 2 1 . 1 1 . . . Weapon . | . . . . . . . . . . . . . Parts Attached 84 | 6 1 5 2 3 7 2 8 10 3 12 17 8 Power 14 | 1 . . . 1 1 . 1 . 1 5 3 1 Engine 8 | 1 . . . 1 . . 1 . 1 2 1 1 Core 4 | . . . . . 1 . . . . 1 2 . Reactor 2 | . . . . . . . . . . 2 . . Propulsion 15 | 2 . . 2 2 1 1 2 3 . . 1 1 Treads . | . . . . . . . . . . . . . Leg 7 | 2 . . 2 2 . . . . . . . 1 Wheel . | . . . . . . . . . . . . . Hover . | . . . . . . . . . . . . . Flight 8 | . . . . . 1 1 2 3 . . 1 . Utility 35 | 1 1 2 . . 3 1 2 6 2 5 10 2 Device 12 | . . . . . 1 . 1 4 1 . 5 . Storage 2 | 1 . 1 . . . . . . . . . . Processor 4 | . . . . . . . . 1 . . 2 1 Hackware 2 | . . . . . . . . . . . 2 . Protection 15 | . 1 1 . . 2 1 1 1 1 5 1 1 Artifact . | . . . . . . . . . . . . . Weapon 20 | 2 . 3 . . 2 . 3 1 . 2 3 4 Energy Gun 2 | 1 . . . . . . . . . . . 1 Energy Cannon . | . . . . . . . . . . . . . Ballistic Gun 6 | 1 . 3 . . 1 . . . . . 1 . Ballistic Cannon 4 | . . . . . . . 1 . . 1 1 1 Launcher 4 | . . . . . . . 1 . . 1 . 2 Special Weapon . | . . . . . . . . . . . . . Impact Weapon . | . . . . . . . . . . . . . Slashing Weapon 3 | . . . . . 1 . 1 1 . . . . Piercing Weapon 1 | . . . . . . . . . . . 1 . Special Melee Weapon . | . . . . . . . . . . . . . Unidentified Prototypes 2 | . . . . . . . . . . 2 . . Parts Lost 27 | . . 1 . 1 1 . . . 2 . 4 18 Power 4 | . . . . . . . . . . . 1 3 Propulsion 6 | . . . . 1 . . . . . . 1 4 Utility 10 | . . . . . 1 . . . 1 . 2 6 Weapon 7 | . . 1 . . . . . . 1 . . 5 Highest Loss Streak 15 | . . 1 . 1 1 . . . 2 . 3 15 To Critical Strikes . | . . . . . . . . . . . . . Average Slot Usage (%) 85 | . 95 100 99 99 71 . 70 79 74 68 72 60 Engine 8 | . 14 14 14 14 . . 6 6 5 1 5 2 Core 2 | . . . . . 8 . 1 . . . 4 2 Leg 13 | . 28 28 27 27 . . . . . . . . Flight 6 | . . . . . 8 . 15 19 17 17 15 8 Device 3 | . . . . . 1 . 10 15 11 9 7 2 Storage 9 | . 14 14 14 14 9 . 7 6 5 5 5 2 Processor 4 | . . . . . . . . 3 5 5 16 19 Protection 13 | . 9 14 14 14 24 . 13 13 17 16 5 . Energy Gun 1 | . 14 10 . . . . . . . . . . Ballistic Gun 13 | . 14 17 28 28 10 . 2 . . . . . Slashing Weapon 3 | . . . . . 7 . 7 7 9 5 5 2 Peak Build Rating 86 | 6 9 10 12 12 49 54 57 69 74 78 86 86 Average Rating 37 | 4 8 8 9 11 47 50 53 66 71 73 80 57 On Entrance 38 | . 6 9 9 12 12 49 50 56 69 71 68 86 Naked Turns . | . . . . . . . . . . . . . Heaviest Build 65 | 13 20 36 32 32 50 47 54 56 58 65 58 47 Greatest Support 59 | 20 20 20 20 20 50 54 54 59 59 59 59 59 Greatest Overweight (x) 11 | 1 . 1 10 1 . . . . . 1 1 11 Average Overweight (x) . | . . . 1 1 . . . . . . . . Largest Inventory Capacity 15 | 8 8 15 15 15 15 15 15 15 15 15 15 15 Average Capacity 14 | 7 8 12 15 15 15 15 15 15 15 15 15 10 Most Carried 15 | 2 8 12 14 15 15 14 15 15 15 15 15 12 Average Carried 12 | 1 5 9 12 14 11 13 14 14 14 14 14 8 Final Capacity 15 | 8 8 15 15 15 15 15 15 15 15 15 15 5 Final Carried 15 | 2 8 12 14 15 15 14 15 15 14 14 12 5 Class Distribution -------------------- 68% | Mutant 8% | Scavenger-Mutant 7% | Hacker-Mutant 6% | Ninja 5% | Scout 3% | Assassin Dominant Class ---------------- Mutant | -10/Materials Mutant | -10/Mines Mutant | -10/Exiles Scavenger-Mutant | -9/Mines Mutant | -8/Materials Mutant | -7/Factory Scout | -7/DSF Ninja | -6/Factory Ninja | -5/Factory Assassin | -5/Waste Mutant | -5/Factory Hacker-Mutant | -5/Extension Resources | -11 -10 -10 -10 -9 -8 -7 -7 -6 -5 -5 -5 -5 ----------- Run | Yrd Mat Min Exi Min Mat Fac DSF Fac Fac Was Fac Ext Matter Collected 1892 | 251 . 231 . 129 . . 21 300 . 279 444 237 Remotely . | . . . . . . . . . . . . . Salvage Created 1111 | . . 253 . 171 . . 6 297 . . 306 78 Parts 62 | . . 19 . 9 . . 3 14 . . 12 5 Haulers Intercepted 1 | . . . . . . . . 1 . . . . Recyclers Shooed 2 | . . 1 . . . . . . . . 1 . Parts Field Recycled . | . . . . . . . . . . . . . Retrieved Matter . | . . . . . . . . . . . . . Parts Self-Destructed . | . . . . . . . . . . . . . Prevented . | . . . . . . . . . . . . . Kills | -11 -10 -10 -10 -9 -8 -7 -7 -6 -5 -5 -5 -5 ------- Run | Yrd Mat Min Exi Min Mat Fac DSF Fac Fac Was Fac Ext Combat Hostiles Destroyed 17 | . . 6 . 4 . . 3 . . . 2 2 Melee 1 | . . . . . . . . . . . 1 . Guns 9 | . . 5 . 4 . . . . . . . . Cannons 6 | . . . . . . . 3 . . . 1 2 AOE 1 | . . 1 . . . . . . . . . . Classes Destroyed 10 | . . 3 . . . . 1 3 . . 3 . Worker 4 | . . . . . . . . 4 . . . . Tunneler 1 | . . . . . . . . . . . 1 . Hauler 1 | . . . . . . . . 1 . . . . Recycler 2 | . . . . . . . . 1 . . 1 . Operator 1 | . . . . . . . . . . . 1 . Swarmer 2 | . . 2 . . . . . . . . . . Cutter 3 | . . . . . . . 3 . . . . . Grunt 7 | . . 2 . 4 . . . . . . . 1 Sentry 2 | . . 2 . . . . . . . . . . Programmer 2 | . . . . . . . . . . . 2 . Thug 1 | . . . . . . . . . . . . 1 Best Kill Streak 3 | . . 2 . 2 . . 3 2 . . 2 2 Combat Bots Only 3 | . . 2 . 2 . . 3 . . . 2 2 Max Kills in Single Turn 2 | . . 1 . 1 . . 2 1 . . 1 1 Gunslinging . | . . . . . . . . . . . . . Exploded 1 | . . 1 . . . . . . . . . . Melee 1 | . . . . . . . . . . . 1 . Uniques/NPCs Destroyed . | . . . . . . . . . . . . . Combat | -11 -10 -10 -10 -9 -8 -7 -7 -6 -5 -5 -5 -5 -------- Run | Yrd Mat Min Exi Min Mat Fac DSF Fac Fac Was Fac Ext Hostile Shots Fired 275 | . . 45 . 37 . . 10 . . 1 55 127 Missed 84 | . . 14 . 8 . . 6 . . . 21 35 Damage Taken 5058 | . . 433 . 355 199 . 106 . 607 55 1133 2170 Core 1181 | . . 46 . 97 . . 17 . 126 . 123 772 Absorbed by Shields 25 | . . . . . . . . . . . 25 . Regen/Repaired (Parts) 98 | . . . . . . . . 59 . . 39 . Core Remaining (%) 87 | 100 . . . 42 100 . 97 100 . . . . Volleys Fired 85 | . . 23 . 21 . . 5 3 . . 6 27 Largest 2 | . . 2 . 2 . . 1 1 . . 1 1 Hottest 69 | . . 60 . 43 . . 44 44 . . 57 69 Shots Fired 129 | . . 46 . 42 . . 5 3 . . 7 26 Gun 93 | . . 46 . 42 . . . . . . . 5 Cannon 33 | . . . . . . . 5 3 . . 7 18 Launcher 3 | . . . . . . . . . . . . 3 Special . | . . . . . . . . . . . . . Kinetic 102 | . . 27 . 42 . . 5 3 . . 7 18 Thermal 5 | . . . . . . . . . . . . 5 Explosive 3 | . . . . . . . . . . . . 3 Electromagnetic 19 | . . 19 . . . . . . . . . . Robot Hit Streak 13 | . . 13 . 11 . . 4 4 . . 2 3 Robot Miss Streak 6 | . . 5 . 2 . . 4 6 . . 1 5 Penetration Max 1 | . . . . . . . . . . . . 1 Secondary Targets 1 | . . . . 1 . . . . . . . . Max Gunslinging Chain 1 | . . . . 1 . . . . . . . . Shots Hit Robots 111 | . . 31 . 34 . . 5 10 . . 21 10 Core Hits 60 | . . 15 . 11 . . 12 7 . . 5 10 Critical Kills 3 | . . . . . . . . . . . 1 2 Critical Parts Destroyed 5 | . . . . . . . . . . . 2 3 Critical Strikes 11 | . . . . . . . . . . . 4 7 Destroy 10 | . . . . . . . . . . . 3 7 Sever 1 | . . . . . . . . . . . 1 . Melee Attacks 131 | . . . . . 26 . . 7 31 . 66 1 Impact . | . . . . . . . . . . . . . Slashing 131 | . . . . . 26 . . 7 31 . 66 1 Piercing . | . . . . . . . . . . . . . Sneak Attacks 10 | . . . . . . . . 5 . . 5 . Combat Hostiles . | . . . . . . . . . . . . . Follow-up Attacks . | . . . . . . . . . . . . . Damage Inflicted 2749 | . . 339 . 401 . . 135 499 . . 874 501 Guns 725 | . . 287 . 401 . . . . . . . 37 Cannons 524 | . . . . . . . 135 77 . . 80 232 Explosions 263 | . . 45 . . . . . . . . . 218 Melee 1216 | . . . . . . . . 422 . . 794 . Ramming 21 | . . 7 . . . . . . . . . 14 Kinetic 1068 | . . 143 . 401 . . 135 77 . . 80 232 Thermal 82 | . . 45 . . . . . . . . . 37 Explosive 218 | . . . . . . . . . . . . 218 Electromagnetic 144 | . . 144 . . . . . . . . . . Impact . | . . . . . . . . . . . . . Slashing 1216 | . . . . . . . . 422 . . 794 . Piercing . | . . . . . . . . . . . . . Highest Corruption 14 | . . . . . 1 . . . 7 7 14 14 Average Corruption 9 | . . . . . 1 . . . 6 7 10 14 Corruption Purged 5 | . . . . . . . . . . . 5 . Corruption Blocked . | . . . . . . . . . . . . . Effects 56 | . . . . . 2 . . . 1 6 36 11 Message Errors 8 | . . . . . . . . . . 2 5 1 Matter Fused 18 | . . . . . 1 . . . . 2 9 6 Heat Flow Errors 6 | . . . . . . . . . . . 6 . Energy Discharges 6 | . . . . . . . . . . . 5 1 Data Loss (minor) 13 | . . . . . 1 . . . . 2 8 2 Data Loss (major) 1 | . . . . . . . . . . . 1 . Misfires 1 | . . . . . . . . . . . 1 . Alerts 1 | . . . . . . . . . 1 . . . Misdirections 1 | . . . . . . . . . . . 1 . Weapon Failures 1 | . . . . . . . . . . . . 1 Overload Shots . | . . . . . . . . . . . . . Overflow Damage 203 | . . . . . . . . . . . 165 38 Projectiles . | . . . . . . . . . . . . . Explosions 38 | . . . . . . . . . . . . 38 Melee 165 | . . . . . . . . . . . 165 . Knockbacks 15 | . . . . . . . 10 . . . 1 4 Impact . | . . . . . . . . . . . . . Kinetic 13 | . . . . . . . 9 . . . 1 3 Secondary 2 | . . . . . . . 1 . . . . 1 Self-Inflicted Damage 56 | . . . . . . . . . . . . 56 Shots 1 | . . . . . . . . . . . . 1 Rammed 1 | . . . . . . . . . . . . 1 Targets Rammed 4 | . . 3 . . . . . . . . . 1 Kicked 3 | . . 3 . . . . . . . . . . Crushed . | . . . . . . . . . . . . . Highest Temperature 412 | . . 243 . 74 . . . 30 . . 330 412 Average Temperature 122 | . . 90 . 41 . . . 20 . . 134 205 Received Heat Transfer 937 | . . 165 . 222 . . . . . . 22 528 Effects 4 | . . . . . . . . . . . 2 2 Energy Bleed 1 | . . . . . . . . . . . 1 . Interference 1 | . . . . . . . . . . . . 1 Matter Decay 1 | . . . . . . . . . . . 1 . Short Circuit 1 | . . . . . . . . . . . . 1 Siege Activations . | . . . . . . . . . . . . . Robots Corrupted . | . . . . . . . . . . . . . Combat Hostiles . | . . . . . . . . . . . . . Parts Fried . | . . . . . . . . . . . . . Impact Corruptions . | . . . . . . . . . . . . . Robots Melted . | . . . . . . . . . . . . . Combat Hostiles . | . . . . . . . . . . . . . Parts Melted . | . . . . . . . . . . . . . Heat Transferred 124 | . . 50 . . . . . . . . . 74 Parts Sabotaged . | . . . . . . . . . . . . . Parts Stolen . | . . . . . . . . . . . . . Parts Stripped . | . . . . . . . . . . . . . Power Chain Reactions 1 | . . 1 . . . . . . . . . . Alert | -11 -10 -10 -10 -9 -8 -7 -7 -6 -5 -5 -5 -5 ------- Run | Yrd Mat Min Exi Min Mat Fac DSF Fac Fac Was Fac Ext Peak Influence 123 | . 15 123 . 105 87 39 112 90 16 17 100 119 Initial 58 | . . 5 . . 40 39 27 58 . 2 11 44 Average 44 | . 1 48 . 84 30 39 69 66 5 2 48 65 Maximum Alert Level . | . . . . . . . . . . . . . Low Security (%) 100 | 100 100 100 . 100 100 100 100 100 100 100 100 100 Level 1 . | . . . . . . . . . . . . . Level 2 . | . . . . . . . . . . . . . Level 3 . | . . . . . . . . . . . . . Level 4 . | . . . . . . . . . . . . . Level 5 . | . . . . . . . . . . . . . High Security . | . . . . . . . . . . . . . Max Security . | . . . . . . . . . . . . . Squads Dispatched 9 | . 1 . . . 1 . 1 . . . 5 1 Investigation . | . . . . . . . . . . . . . Extermination 2 | . . . . . . . . . . . 2 . Reinforcement 7 | . 1 . . . 1 . 1 . . . 3 1 Assault . | . . . . . . . . . . . . . Garrison . | . . . . . . . . . . . . . Intercept . | . . . . . . . . . . . . . Searches Triggered . | . . . . . . . . . . . . . Construction Impeded 1 | . . . . . . . . . . . . 1 Haulers Reinforced . | . . . . . . . . . . . . . Active Scanning Responses . | . . . . . . . . . . . . . Cargo Convoy Interrupts . | . . . . . . . . . . . . . Stealth | -11 -10 -10 -10 -9 -8 -7 -7 -6 -5 -5 -5 -5 --------- Run | Yrd Mat Min Exi Min Mat Fac DSF Fac Fac Was Fac Ext Distress Signals 2 | . 1 . . . 1 . . . . . . . Communications Jammed . | . . . . . . . . . . . . . Distress Signals . | . . . . . . . . . . . . . Times Spotted 45 | . 1 7 . 6 2 . 4 . . 2 10 13 Peak Tracking Total 7 | . 2 3 . 3 5 . 3 . . 1 3 7 Tactical Retreats 13 | . . . . 1 1 . 1 . . 1 6 3 Traps | -11 -10 -10 -10 -9 -8 -7 -7 -6 -5 -5 -5 -5 ------- Run | Yrd Mat Min Exi Min Mat Fac DSF Fac Fac Was Fac Ext Traps Triggered 2 | . . . . . . . . . 1 . 1 . Indirectly . | . . . . . . . . . . . . . Trap Hack Attempts . | . . . . . . . . . . . . . Triggered . | . . . . . . . . . . . . . Disarmed . | . . . . . . . . . . . . . Reprogrammed . | . . . . . . . . . . . . . Reused . | . . . . . . . . . . . . . Traps Extracted . | . . . . . . . . . . . . . Installed . | . . . . . . . . . . . . . Triggered . | . . . . . . . . . . . . . Machines | -11 -10 -10 -10 -9 -8 -7 -7 -6 -5 -5 -5 -5 ---------- Run | Yrd Mat Min Exi Min Mat Fac DSF Fac Fac Was Fac Ext Machines Disabled 2 | . . 1 . . 1 . . . . . . . Max in Single Turn 1 | . . 1 . . 1 . . . . . . . Machines Repaired . | . . . . . . . . . . . . . Machines Dismantled . | . . . . . . . . . . . . . Machines Sabotaged . | . . . . . . . . . . . . . Overloaded Fab Kills . | . . . . . . . . . . . . . Hacking | -11 -10 -10 -10 -9 -8 -7 -7 -6 -5 -5 -5 -5 --------- Run | Yrd Mat Min Exi Min Mat Fac DSF Fac Fac Was Fac Ext Machines Accessed 22 | . . . 5 . 3 1 . 4 . . 9 . Terminals 12 | . . . . . 3 1 . 2 . . 6 . Fabricators 1 | . . . . . . . . . . . 1 . Repair Stations 2 | . . . . . . . . 1 . . 1 . Recycling Units 2 | . . . . . . . . 1 . . 1 . Scanalyzers . | . . . . . . . . . . . . . Garrison Access . | . . . . . . . . . . . . . Total Hacks 87 | . . . 50 . 9 1 . 11 . . 16 . Successful 75 | . . . 50 . 5 1 . 10 . . 9 . Failed 12 | . . . . . 4 . . 1 . . 7 . Catastrophic 2 | . . . . . 1 . . . . . 1 . Database Lockouts . | . . . . . . . . . . . . . Manual 19 | . . . 7 . 5 . . 1 . . 6 . Terminals 26 | . . . . . 9 1 . 6 . . 10 . Fabricators 2 | . . . . . . . . . . . 2 . Repair Stations 7 | . . . . . . . . 4 . . 3 . Recycling Units 2 | . . . . . . . . 1 . . 1 . Scanalyzers . | . . . . . . . . . . . . . Garrison Access . | . . . . . . . . . . . . . Terminal Hacks 66 | . . . 50 . 5 1 . 5 . . 5 . Record 59 | . . . 49 . 4 . . 4 . . 2 . Open Door 1 | . . . . . . . . . . . 1 . Open DSF 3 | . . . . . . 1 . 1 . . 1 . Branch Access Points 1 | . . . . . . . . . . . 1 . Zone Layout 1 | . . . . . 1 . . . . . . . Derelict Proto ID Bank 1 | . . . 1 . . . . . . . . . Fabricator Hacks 1 | . . . . . . . . . . . 1 . Network Status 1 | . . . . . . . . . . . 1 . Repair Station Hacks 6 | . . . . . . . . 4 . . 2 . Scan Component 3 | . . . . . . . . 2 . . 1 . Repair 3 | . . . . . . . . 2 . . 1 . Recycling Unit Hacks 2 | . . . . . . . . 1 . . 1 . Report Inventory 1 | . . . . . . . . 1 . . . . Retrieve Matter 1 | . . . . . . . . . . . 1 . Scanalyzer . | . . . . . . . . . . . . . Garrison Access Hacks . | . . . . . . . . . . . . . Unauthorized Hacks . | . . . . . . . . . . . . . Terminals . | . . . . . . . . . . . . . Fabricators . | . . . . . . . . . . . . . Repair Stations . | . . . . . . . . . . . . . Recycling Units . | . . . . . . . . . . . . . Scanalyzers . | . . . . . . . . . . . . . Garrison Access . | . . . . . . . . . . . . . Data Cores Recovered . | . . . . . . . . . . . . . Used . | . . . . . . . . . . . . . Hacking Detections 12 | . . . . . 3 . . 2 . . 7 . Full Trace Events . | . . . . . . . . . . . . . Feedback Events . | . . . . . . . . . . . . . Feedback Blocked . | . . . . . . . . . . . . . Robot Schematics Acquired . | . . . . . . . . . . . . . Robots Built . | . . . . . . . . . . . . . Authchips . | . . . . . . . . . . . . . Time . | . . . . . . . . . . . . . Total Robot Build Rating . | . . . . . . . . . . . . . Part Schematics Acquired . | . . . . . . . . . . . . . Parts Built . | . . . . . . . . . . . . . Authchips . | . . . . . . . . . . . . . Time . | . . . . . . . . . . . . . Total Part Build Rating . | . . . . . . . . . . . . . Parts Repaired 3 | . . . . . . . . 2 . . 1 . Time 132 | . . . . . . . . 70 . . 62 . Parts Recycled . | . . . . . . . . . . . . . Recycled Matter . | . . . . . . . . . . . . . Retrieved Matter . | . . . . . . . . . . . . . Retrieved Components . | . . . . . . . . . . . . . Parts Scanalyzed . | . . . . . . . . . . . . . Part Schematics Acquired . | . . . . . . . . . . . . . Parts Damaged . | . . . . . . . . . . . . . Bothacking | -11 -10 -10 -10 -9 -8 -7 -7 -6 -5 -5 -5 -5 ------------ Run | Yrd Mat Min Exi Min Mat Fac DSF Fac Fac Was Fac Ext Used RIF Installer . | . . . . . . . . . . . . . Robots Hacked . | . . . . . . . . . . . . . Non-combat . | . . . . . . . . . . . . . Combat . | . . . . . . . . . . . . . Robot Hacks Applied . | . . . . . . . . . . . . . Relay Couplers Released . | . . . . . . . . . . . . . Fabnet Peak Effective % . | . . . . . . . . . . . . . Robots Rewired . | . . . . . . . . . . . . . Allies Hacked . | . . . . . . . . . . . . . Hacks Repelled . | . . . . . . . . . . . . . Allies | -11 -10 -10 -10 -9 -8 -7 -7 -6 -5 -5 -5 -5 -------- Run | Yrd Mat Min Exi Min Mat Fac DSF Fac Fac Was Fac Ext Total Allies . | . . . . . . . . . . . . . Largest Group . | . . . . . . . . . . . . . Highest-Rated Group . | . . . . . . . . . . . . . Highest-Rated Ally . | . . . . . . . . . . . . . Total Orders . | . . . . . . . . . . . . . Ally Attacks . | . . . . . . . . . . . . . Total Damage . | . . . . . . . . . . . . . Kills . | . . . . . . . . . . . . . Allies Corrupted . | . . . . . . . . . . . . . Allies Melted . | . . . . . . . . . . . . . Intel | -11 -10 -10 -10 -9 -8 -7 -7 -6 -5 -5 -5 -5 ------- Run | Yrd Mat Min Exi Min Mat Fac DSF Fac Fac Was Fac Ext Robot Analysis Total . | . . . . . . . . . . . . . Derelict Logs Recovered 2 | . . 1 . 1 . . . . . . . . Drone Launches . | . . . . . . . . . . . . . Drone Recoveries . | . . . . . . . . . . . . . Exploration | -11 -10 -10 -10 -9 -8 -7 -7 -6 -5 -5 -5 -5 ------------- Run | Yrd Mat Min Exi Min Mat Fac DSF Fac Fac Was Fac Ext Turns Passed 6126 | 66 158 828 1801 255 732 7 69 414 189 220 1090 297 Spaces Moved 6227 | 45 126 445 939 101 443 11 98 796 313 303 2114 493 Core 169 | 7 . . 3 . . . . . . . . 159 Treads . | . . . . . . . . . . . . . Legs 1648 | 38 126 445 936 101 . . . . . . . 2 Wheels . | . . . . . . . . . . . . . Hover . | . . . . . . . . . . . . . Flight 4410 | . . . . . 443 11 98 796 313 303 2114 332 Fastest Speed 35 | 50 120 120 190 190 50 42 42 35 35 35 35 35 Average Speed 76 | 123 120 158 191 190 50 42 42 35 35 64 36 46 Slowest Speed 600 | 190 120 190 550 190 50 42 42 35 35 108 150 600 Overloaded Moves . | . . . . . . . . . . . . . Propulsion Burnouts . | . . . . . . . . . . . . . Robots Hopped . | . . . . . . . . . . . . . Cave-ins Triggered 4 | . . . . . 1 . . . 2 . 1 . Exploration Rate (%) 40 | 4 31 67 94 25 23 . 60 15 4 97 31 39 Regions Visited 12 Branch Regions 4 Pre-discovered Areas 1 | . . . 1 . . . . . . . . . Known Exits Taken 3 | . . . . . . 1 . 1 . . 1 . Unknown Exits Taken 6 | 1 1 1 1 1 1 . . . . . . . Scrap Searched 3 | . . 2 . 1 . . . . . . . . Spaces Dug 90 | . . . . . 25 . . . 21 . 36 8 Terrain Destroyed 148 | . . 3 . . 25 . . . 21 . 38 61 Melee 82 | . . . . . 25 . . . 21 . 35 1 Projectile 18 | . . . . . . . . . . . 3 15 AOE 48 | . . 3 . . . . . . . . . 45 Terrain Rammed . | . . . . . . . . . . . . . Walls Destroyed . | . . . . . . . . . . . . . Machines Disabled . | . . . . . . . . . . . . . Actions | -11 -10 -10 -10 -9 -8 -7 -7 -6 -5 -5 -5 -5 --------- Run | Yrd Mat Min Exi Min Mat Fac DSF Fac Fac Was Fac Ext Total 7278 | 52 132 523 948 126 915 13 118 921 344 330 2325 531 Wait 647 | . . 38 1 . 422 . . 80 . . 106 . Move 6215 | 44 125 444 938 100 442 10 97 795 312 302 2113 493 Hop . | . . . . . . . . . . . . . Pick Up 57 | 2 6 6 2 1 11 . 4 11 1 4 8 1 Fast Attach 30 | 6 1 . . . . . 2 5 . 2 10 4 Attach 26 | . . 1 2 1 4 2 1 1 3 4 4 3 Detach 7 | . . . 2 . . 1 . . 1 3 . . Swap 28 | . . 4 . 2 3 . 5 4 . 6 3 1 Drop 52 | . . 4 3 1 7 . 4 15 . 9 9 . Fire 85 | . . 23 . 21 . . 5 3 . . 6 27 Melee 126 | . . . . . 26 . . 7 26 . 66 1 Ram 1 | . . . . . . . . . . . . 1 Kick 3 | . . 3 . . . . . . . . . . Crush . | . . . . . . . . . . . . . Escape Stasis 1 | . . . . . . . . . 1 . . . Rewire . | . . . . . . . . . . . . . Trap . | . . . . . . . . . . . . . Miscellaneous . | . . . . . . . . . . . . . Route ------- -11/Scrapyard -10/Materials (discovered 2 exits: [*Mat] / [*Min]) -10/Mines -10/Exiles (discovered 2 exits: [*Min x2]) -9/Mines -8/Materials -7/Factory -7/DSF -6/Factory -5/Factory -5/Waste -5/Factory (discovered 4 exits: Upp x2 / *Ext x2) -5/Extension History --------- Turn | Location | Event 7 | -11/Scrapyard | Discovered new exit (range 15) 67 | -11/Scrapyard | Entered Materials 209 | -10/Materials | Discovered new exit (range 14) 224 | -10/Materials | Discovered new exit (range 16) 225 | -10/Materials | Entered Mines 239 | -10/Mines | Met a Derelict bent on vengeance 277 | -10/Mines | Learned 8 Materials zone layouts 301 | -10/Mines | Build established: Mutant 1043 | -10/Mines | Deemed a non-threat by the Exiles lab entrance 1045 | -10/Mines | Discovered new exit (range 5) 1053 | -10/Mines | Entered Exiles 1089 | -10/Exiles | Discovered new exit (range 14) 1144 | -10/Exiles | Met 8R-AWN 1180 | -10/Exiles | Met EX-HEX 1292 | -10/Exiles | Met EX-DEC 1417 | -10/Exiles | Visited The Gauntlet 1748 | -10/Exiles | Met EX-BIN 1903 | -10/Exiles | Aligned with FarCom system 1905 | -10/Exiles | Given EX-Vault access code 2164 | -10/Exiles | Learned location of Zion (-7) 2338 | -10/Exiles | Discovered new exit (range 12) 2551 | -10/Exiles | Opened EX-Vault 2598 | -10/Exiles | Found Flying Fortress v7 2641 | -10/Exiles | Warned to stay clear of 0b10 Research branches 2854 | -10/Exiles | Left Exiles lab with Flying Fortress v7 2854 | -10/Exiles | Entered Mines 2907 | -9/Mines | Build established: Scavenger-Mutant 2915 | -9/Mines | Core integrity fell below 50% 3045 | -9/Mines | Learned Materials stockpile data 3080 | -9/Mines | Discovered new exit (range 16) 3109 | -9/Mines | Entered Materials 3109 | -8/Materials | Evolved 4 slots: Propulsion x2, Utility x2 3410 | -8/Materials | Build established: Mutant 3702 | -8/Materials | Crushed by falling debris 3811 | -8/Materials | Discovered new exit (range 16) 3813 | -8/Materials | Found Powered Armor 3815 | -8/Materials | Found Powered Armor 3816 | -8/Materials | Found Powered Armor 3818 | -8/Materials | Found Powered Armor 3841 | -8/Materials | Entered Factory 3841 | -7/Factory | Evolved 2 slots: Propulsion x1, Utility x1 3848 | -7/Factory | Identified exit to DSF 3848 | -7/Factory | Entered DSF 3877 | -7/DSF | Additional patrols routed to DSF 3898 | -7/DSF | Discovered new exit (range 15) 3917 | -7/DSF | Entered Factory 3917 | -6/Factory | Evolved 2 slots: Propulsion x1, Utility x1 3980 | -6/Factory | Repaired Surge Thruster 4014 | -6/Factory | Repaired Rocket Launcher 4283 | -6/Factory | Discovered new exit (range 11) 4287 | -6/Factory | Identified exit to Factory 4331 | -6/Factory | Entered another Factory area 4331 | -5/Factory | Evolved 2 slots: Power x1, Utility x1 4412 | -5/Factory | Build established: Ninja 4474 | -5/Factory | Crushed by falling debris 4485 | -5/Factory | Crushed by falling debris 4520 | -5/Factory | Sucked down chute 4520 | -5/Factory | Entered Waste 4520 | -5/Waste | The area was eerily silent 4556 | -5/Waste | Found Fusion Bomb Launcher 4560 | -5/Waste | A Compactor rumbled back to life 4560 | -5/Waste | Spotted C-40 Crusher 4731 | -5/Waste | Crushed by Compactor (0 parts destroyed, 2 dropped) 4736 | -5/Waste | Discovered new exit (range 11) 4740 | -5/Waste | Identified exit to Factory 4740 | -5/Waste | Entered Factory 4918 | -5/Factory | Identified exit to Upper Caves 4918 | -5/Factory | Identified exit to Extension 4988 | -5/Factory | Build established: Mutant 5117 | -5/Factory | Repaired Antimatter Reactor 5152 | -5/Factory | Crushed by falling debris 5152 | -5/Factory | System corruption reached 10% 5183 | -5/Factory | Lost 3 parts (1p1n1u) 5830 | -5/Factory | Entered Extension 5877 | -5/Extension | Spotted B-75 Beast 5994 | -5/Extension | Core integrity fell below 50% 6041 | -5/Extension | Core integrity fell below 20% 6050 | -5/Extension | Build established: Hacker-Mutant 6084 | -5/Extension | Lost 15 parts (3p4n3u5w) 6120 | -5/Extension | Spotted B-75 Beast 6127 | -5/Extension | Destroyed by B-75 Beast with Magnetic Acceleration Cannon Last Messages --------------- Penetrated by Slug. Slug penetrates Wall. System corrupted: Matter fused (-5). Penetrated by Slug. Hrd. Medium Armor Plating destroyed. Imp. Deuterium Engine destroyed. Slug penetrates Wall. Penetrated by Slug. FOJV 5MOKSST<%CED>D9DILU|&4VIR, T-07 Excavator enters Transfer Station. Slammed into R-10 Processor. System corrupted: Component data lost. System corrupted: Matter fused (-6). Slug penetrates U-05 Engineer. Adv. Terrain Scan Processor destroyed. Adv. Signal Interpreter destroyed. Critical hit (Burn: +37). Penetrated by Slug. System Shield destroyed. Penetrated by Slug. Map ----- +----------------------------------------------------+ | ?????????????????????????????????????????????????? | | ?????????????????????????????????????????????????? | | ?????????????????????????????????????????????????? | | ?????????????????????????????????????????????????? | | ?????????????????????????????????????????????????? | | ?????????????????????????????????????????????????? | | ?????????????????????????????????????????????????? | | ?????????????????????????????????????????????????? | | ?????????????????????????????????????????????????? | | ?????????????????????????????????????????????????? | | ???????????????? ????????????????????????????????? | | ???????????????? ????????????????????????????????? | | ???????????????? ????????????????????????????????? | | ???????????????# #???????????????????????????????? | | ???????????????# #???????????????????????????????? | | ???????????????# #???????????????????????????????? | | ???????????????# #??????????#????????????????????? | | ???????????????# #????????? #????????????????????? | | ???????????????# #????????? #????????????????????? | | ???????????????# ########?? #????????????????????? | | ?????????????### ##; ## ### ###??????????????????? | | ?????????????#"" ""Y Y "" ""#??????????????????? | | ?????????????# " " " " #??????????????????? | | ?????????????# % #??????????????????? | | ?????????????# #??????????????????? | | ############## R @ #??????????????????? | | % u ???????????? | | u ????????? | | R BB k Rt ?????????? | | BB uR ?????????? | | kk t BB t u ??????????? | | ##############u BBt #########??????????? | | ?????????????# #??????????????????? | | ?????????????# #??????????????????? | | ?????????????# #??????????????????? | | ?????????????# #??????????????????? | | ?????????????######T#"""#######??????????????????? | | ??????????????????###????????????????????????????? | | ?????????????????????????????????????????????????? | | | | | | | | | | | | | | | | | | | | | | | +----------------------------------------------------+ Best States ------------- Heat Dissipation 71 Energy Generation 28 Energy Capacity 325 Matter Stores 300 Matter Capacity 300 Sight Range 22 Robot Scan Range 15 Terrain Scan Density 210 ECM Strength 1 Power Amplification 20 Armor Coverage 675 Evasion (%) 71 Offensive Hacking 10 Defensive Hacking 10 Item Schematics ----------------- None Robot Schematics ------------------ None Fabricated ------------ Nothing Alien Tech Used ----------------- None Achievements -------------- Librarian Part-time Excavator Challenges ------------ None Game ------ Seed ImprinterUltimateDoomcannon Manual? 0 Play Time 01:59:47 Cumulative 12.3 hours Start 2024.08.28 @ 21:03:21 End 2024.08.29 @ 09:01:04 Sessions 3 Manual Loads 0 Difficulty Rogue Special Mode None Game No. 18 Rogue 18 Adventurer 0 Explorer 0 Win Type - Total 0 Types 0/0/0/0/0/0/0/0/0 Lore% 10 Gallery% 17 Achievement% 17 Wizard Run 0 Options --------- Layout 0 ASCII 0 Keyboard 0 Movement Numpad Keybinds 0 Fullscreen 1 Font 18/Cog Map View 76x50 Zoom Use 0% Tactical HUD 0 Map Filters NONE Filters NONE Steam 1 RUN: b60acae8-a429-40ad-af48-03bb141493fc